Cogmind - Beta 12 @@@ ROGUE MODE // 2023.03.29 @ 16:17:59 Player: ArabianSandBoa Result: Destroyed by as-40197 with Assembled Blade Performance ------------- Evolutions (0) 0 Regions Visited (4) 800 Robots Destroyed (37) 185 Value Destroyed (733) 733 Prototype IDs (2) 40 Alien Tech Used (0) 0 Bonus (-27) -27 TOTAL SCORE: 1731 Bonus ------- Friendly Fire -27 Cogmind --------- Core Integrity 0/250 Matter 212/300 Energy 90/100 System Corruption 5% Temperature Cool (0) Movement Flying (37) Location -9/Mines Parts ------- > --- POWER (1) -------- (None) > --- PROPULSION (2) --- Improved Flight Unit Improved Flight Unit > --- UTILITY (2) ------ Improved Heat Sink > --- WEAPON (2) ------- (None) > --- INVENTORY (5) ---- Light Nuclear Core Light Nuclear Core Targeting Computer Medium Armor Plating Hacking Suite Peak State ------------ > --- POWER ------------ Ion Engine > --- PROPULSION ------- Improved Flight Unit Improved Flight Unit > --- UTILITY ---------- Improved Heat Sink High-capacity Storage Unit > --- WEAPON ----------- (None) > --- INVENTORY -------- Light Nuclear Core Light Nuclear Core Light Treads Light Treads Flight Unit Improved Flight Unit Improved Flight Unit Medium Storage Unit Targeting Computer Targeting Computer Targeting Computer Targeting Computer Targeting Computer Medium Armor Plating Medium Armor Plating Medium Armor Plating Medium Armor Plating Hacking Suite EM Pulse Gun [Rating: 14] Favorites ----------- Power Ion Engine Engine Ion Engine Propulsion Light Treads Treads Light Treads Leg Aluminum Leg Wheel Wheel Flight Unit Improved Flight Unit Utility High-capacity Storage Unit Device Improved Heat Sink Storage High-capacity Storage Unit Weapon EM Pulse Gun Energy Gun EM Pulse Gun Ballistic Cannon Light Cannon Launcher Grenade Launcher Build | -11 -10 -10 -10 -9 ------- Run | Jun Mat Min Exi Min Slots Evolved . | . . . . . Power . | . . . . . Propulsion . | . . . . . Utility . | . . . . . Weapon . | . . . . . Parts Attached 26 | . 19 4 . 3 Power 3 | . 2 1 . . Engine 3 | . 2 1 . . Core . | . . . . . Reactor . | . . . . . Propulsion 15 | . 11 2 . 2 Treads 9 | . 7 2 . . Leg . | . . . . . Wheel 3 | . 3 . . . Hover . | . . . . . Flight 3 | . 1 . . 2 Utility 2 | . 2 . . . Device 1 | . 1 . . . Storage 1 | . 1 . . . Processor . | . . . . . Hackware . | . . . . . Protection . | . . . . . Artifact . | . . . . . Weapon 6 | . 4 1 . 1 Energy Gun 3 | . 3 . . . Energy Cannon . | . . . . . Ballistic Gun . | . . . . . Ballistic Cannon 1 | . 1 . . . Launcher 2 | . . 1 . 1 Special Weapon . | . . . . . Impact Weapon . | . . . . . Slashing Weapon . | . . . . . Piercing Weapon . | . . . . . Special Melee Weapon . | . . . . . Unidentified Prototypes 1 | . 1 . . . Corrupted Parts 1 | . 1 . . . System Corruption 5 | . 5 . . . Parts Lost 6 | . 4 . . 2 Power . | . . . . . Propulsion 2 | . 1 . . 1 Utility . | . . . . . Weapon 4 | . 3 . . 1 Highest Loss Streak 2 | . 1 . . 2 To Critical Strikes . | . . . . . Average Slot Usage (%) 88 | . 97 85 71 76 Engine 14 | . 14 14 14 14 Treads 26 | . 24 28 28 27 Wheel 1 | . 2 . . . Device 12 | . 10 14 14 14 Storage 15 | . 17 14 14 14 Energy Gun 11 | . 23 1 . . Ballistic Cannon 1 | . 2 . . . Launcher 3 | . . 12 . 5 Naked Turns . | . . . . . Heaviest Build 54 | 10 54 49 46 49 Greatest Support 40 | 20 40 40 40 40 Greatest Overweight (x) 5 | . 5 1 1 1 Average Overweight (x) 1 | . 1 1 1 1 Largest Inventory Capacity 20 | . 20 20 20 20 Average Capacity 19 | . 19 20 20 20 Most Carried 20 | . 20 20 20 20 Average Carried 18 | . 18 19 19 19 Final Capacity 20 | 8 20 20 20 5 Final Carried 20 | 6 19 20 20 5 Class Distribution -------------------- 100% | Mutant Dominant Class ---------------- Mutant | -10/Materials Mutant | -10/Mines Mutant | -10/Exiles Mutant | -9/Mines Resources | -11 -10 -10 -10 -9 ----------- Run | Jun Mat Min Exi Min Matter Collected 617 | 200 297 70 . 50 Remotely . | . . . . . Salvage Created 1003 | . 902 11 . 90 Parts 82 | . 65 4 . 13 Haulers Intercepted 2 | . 2 . . . Recyclers Shooed . | . . . . . Parts Field Recycled . | . . . . . Retrieved Matter . | . . . . . Parts Self-Destructed . | . . . . . Prevented . | . . . . . Kills | -11 -10 -10 -10 -9 ------- Run | Jun Mat Min Exi Min Combat Hostiles Destroyed 26 | . 18 3 . 5 Guns 12 | . 12 . . . Cannons 6 | . 6 . . . AOE 8 | . . 3 . 5 Classes Destroyed 10 | . 7 . . 3 Worker 3 | . 3 . . . Builder 3 | . 2 . . 1 Tunneler 1 | . . . . 1 Hauler 2 | . 2 . . . Recycler 1 | . . . . 1 Operator 1 | . 1 . . . Watcher 1 | . 1 . . . Swarmer 10 | . 3 3 . 4 Grunt 15 | . 15 . . . Assembled 1 | . . . . 1 Best Kill Streak 6 | . 4 3 . 6 Combat Bots Only 4 | . 4 3 . 4 Max Kills in Single Turn 4 | . 2 2 . 4 Gunslinging . | . . . . . Exploded 4 | . . 2 . 4 Melee . | . . . . . Uniques/NPCs Destroyed . | . . . . . Combat | -11 -10 -10 -10 -9 -------- Run | Jun Mat Min Exi Min Damage Taken 1407 | . 814 43 . 550 Core 259 | . 137 . . 122 Absorbed by Shields . | . . . . . Core Remaining (%) 100 | 100 . . . . Volleys Fired 81 | . 75 2 . 4 Largest 2 | . 2 1 . 1 Hottest 90 | . 90 30 . 30 Shots Fired 145 | . 138 2 . 5 Gun 112 | . 112 . . . Cannon 26 | . 26 . . . Launcher 7 | . . 2 . 5 Special . | . . . . . Kinetic 26 | . 26 . . . Thermal 33 | . 33 . . . Explosive 7 | . . 2 . 5 Electromagnetic 79 | . 79 . . . Robot Hit Streak 11 | . 11 7 . 4 Robot Miss Streak 4 | . 4 . . 1 Penetration Max . | . . . . . Secondary Targets . | . . . . . Shots Hit Robots 89 | . 84 1 . 4 Core Hits 53 | . 39 3 . 11 Critical Kills . | . . . . . Critical Parts Destroyed . | . . . . . Critical Strikes 3 | . 3 . . . Burn 2 | . 2 . . . Corrupt 1 | . 1 . . . Melee Attacks . | . . . . . Impact . | . . . . . Slashing . | . . . . . Piercing . | . . . . . Sneak Attacks . | . . . . . Combat Hostiles . | . . . . . Follow-up Attacks . | . . . . . Damage Inflicted 1970 | . 1320 156 . 494 Guns 1004 | . 1004 . . . Cannons 233 | . 233 . . . Explosions 733 | . 83 156 . 494 Melee . | . . . . . Ramming . | . . . . . Kinetic 233 | . 233 . . . Thermal 297 | . 297 . . . Explosive 650 | . . 156 . 494 Electromagnetic 790 | . 790 . . . Impact . | . . . . . Slashing . | . . . . . Piercing . | . . . . . Highest Corruption 5 | . 5 5 5 5 Average Corruption 5 | . 5 5 5 5 Corruption Purged . | . . . . . Corruption Blocked . | . . . . . Effects 52 | . 24 15 10 3 Message Errors 20 | . 10 4 5 1 Matter Fused 13 | . 3 7 2 1 Heat Flow Errors 4 | . 2 2 . . Energy Discharges 4 | . 2 . 2 . Data Loss (minor) 3 | . 2 . 1 . Data Loss (major) 3 | . 2 1 . . Misfires 3 | . 2 . . 1 Alerts 1 | . . 1 . . Weapon Failures 1 | . 1 . . . Overload Shots . | . . . . . Overflow Damage 20 | . 4 . . 16 Projectiles . | . . . . . Explosions 20 | . 4 . . 16 Melee . | . . . . . Knockbacks 5 | . 5 . . . Impact . | . . . . . Kinetic 4 | . 4 . . . Secondary 1 | . 1 . . . Self-Inflicted Damage 163 | . . 11 . 152 Shots 5 | . . 1 . 4 Rammed . | . . . . . Targets Rammed . | . . . . . Kicked . | . . . . . Crushed . | . . . . . Highest Temperature 232 | . 232 197 . . Average Temperature 90 | . 89 97 . . Received Heat Transfer 564 | . 444 . . 120 Siege Activations . | . . . . . Robots Corrupted . | . . . . . Combat Hostiles . | . . . . . Parts Fried 4 | . 4 . . . Impact Corruptions . | . . . . . Robots Melted . | . . . . . Combat Hostiles . | . . . . . Parts Melted 2 | . 2 . . . Heat Transferred 927 | . 927 . . . Parts Sabotaged . | . . . . . Parts Stolen . | . . . . . Parts Stripped . | . . . . . Power Chain Reactions 3 | . 3 . . . Missiles Intercepted . | . . . . . Alert | -11 -10 -10 -10 -9 ------- Run | Jun Mat Min Exi Min Peak Influence 336 | . 336 162 . 128 Initial 69 | . . 69 . . Average 128 | . 171 72 . 50 Maximum Alert Level 1 | . 1 . . . Low Security (%) 73 | . 54 100 . 100 Level 1 26 | . 45 . . . Level 2 . | . . . . . Level 3 . | . . . . . Level 4 . | . . . . . Level 5 . | . . . . . High Security . | . . . . . Max Security . | . . . . . Squads Dispatched 5 | . 4 . . 1 Investigation 1 | . 1 . . . Extermination . | . . . . . Reinforcement 4 | . 3 . . 1 Assault . | . . . . . Garrison . | . . . . . Intercept . | . . . . . Searches Triggered . | . . . . . Construction Impeded 1 | . . . . 1 Haulers Reinforced . | . . . . . Active Scanning Responses . | . . . . . Cargo Convoy Interrupts . | . . . . . Stealth | -11 -10 -10 -10 -9 --------- Run | Jun Mat Min Exi Min Distress Signals 2 | . 2 . . . Communications Jammed . | . . . . . Distress Signals . | . . . . . Times Spotted 55 | . 33 5 . 17 Peak Tracking Total 12 | . 8 3 . 12 Tactical Retreats 3 | . 3 . . . Traps | -11 -10 -10 -10 -9 ------- Run | Jun Mat Min Exi Min Traps Triggered 1 | . 1 . . . Indirectly . | . . . . . Trap Hack Attempts . | . . . . . Triggered . | . . . . . Disarmed . | . . . . . Reprogrammed . | . . . . . Reused . | . . . . . Traps Extracted . | . . . . . Installed . | . . . . . Triggered 1 | . . 1 . . Machines | -11 -10 -10 -10 -9 ---------- Run | Jun Mat Min Exi Min Machines Disabled 3 | . 3 . . . Max in Single Turn 1 | . 1 . . . Machines Repaired . | . . . . . Machines Sabotaged . | . . . . . Overloaded Fab Kills . | . . . . . Hacking | -11 -10 -10 -10 -9 --------- Run | Jun Mat Min Exi Min Machines Accessed 3 | . 3 . . . Terminals 2 | . 2 . . . Fabricators . | . . . . . Repair Stations . | . . . . . Recycling Units 1 | . 1 . . . Scanalyzers . | . . . . . Garrison Access . | . . . . . Total Hacks 7 | . 7 . . . Successful 4 | . 4 . . . Failed 3 | . 3 . . . Catastrophic . | . . . . . Database Lockouts . | . . . . . Manual . | . . . . . Terminals 5 | . 5 . . . Fabricators . | . . . . . Repair Stations . | . . . . . Recycling Units 2 | . 2 . . . Scanalyzers . | . . . . . Garrison Access . | . . . . . Terminal Hacks 2 | . 2 . . . Prototype ID Bank 1 | . 1 . . . Registered Components 1 | . 1 . . . Fabricator Hacks . | . . . . . Repair Station Hacks . | . . . . . Recycling Unit Hacks 2 | . 2 . . . Report Inventory 1 | . 1 . . . Retrieve Components 1 | . 1 . . . Scanalyzer . | . . . . . Garrison Access Hacks . | . . . . . Unauthorized Hacks . | . . . . . Terminals . | . . . . . Fabricators . | . . . . . Repair Stations . | . . . . . Recycling Units . | . . . . . Scanalyzers . | . . . . . Garrison Access . | . . . . . Data Cores Recovered . | . . . . . Used . | . . . . . Hacking Detections 2 | . 2 . . . Full Trace Events 1 | . 1 . . . Feedback Events . | . . . . . Feedback Blocked . | . . . . . Robot Schematics Acquired . | . . . . . Robots Built . | . . . . . Authchips . | . . . . . Time . | . . . . . Total Robot Build Rating . | . . . . . Part Schematics Acquired . | . . . . . Parts Built . | . . . . . Authchips . | . . . . . Time . | . . . . . Total Part Build Rating . | . . . . . Parts Repaired . | . . . . . Time . | . . . . . Parts Recycled . | . . . . . Recycled Matter . | . . . . . Retrieved Matter . | . . . . . Retrieved Components 3 | . 3 . . . Parts Scanalyzed . | . . . . . Part Schematics Acquired . | . . . . . Parts Damaged . | . . . . . Bothacking | -11 -10 -10 -10 -9 ------------ Run | Jun Mat Min Exi Min Used RIF Installer . | . . . . . Robots Hacked . | . . . . . Non-combat . | . . . . . Combat . | . . . . . Robot Hacks Applied . | . . . . . Relay Couplers Released . | . . . . . Fabnet Peak Effective % . | . . . . . Robots Rewired . | . . . . . Allies Hacked . | . . . . . Hacks Repelled . | . . . . . Allies | -11 -10 -10 -10 -9 -------- Run | Jun Mat Min Exi Min Total Allies 3 | . . 3 . . Largest Group 3 | . . 3 2 2 Highest-Rated Group 40 | . . 40 32 32 Highest-Rated Ally 16 | . . 16 16 16 Total Orders . | . . . . . Ally Attacks 6 | . . . . 6 Total Damage 77 | . . . . 77 Kills . | . . . . . Allies Corrupted . | . . . . . Allies Melted . | . . . . . Intel | -11 -10 -10 -10 -9 ------- Run | Jun Mat Min Exi Min Robot Analysis Total . | . . . . . Derelict Logs Recovered 2 | . . 1 . 1 Drone Launches . | . . . . . Drone Recoveries . | . . . . . Exploration | -11 -10 -10 -10 -9 ------------- Run | Jun Mat Min Exi Min Turns Passed 2912 | . 1414 805 498 195 Spaces Moved 1093 | 1 489 323 205 75 Core . | . . . . . Treads 992 | . 389 323 205 75 Legs 1 | 1 . . . . Wheels 100 | . 100 . . . Hover . | . . . . . Flight . | . . . . . Fastest Speed 90 | 120 90 240 240 240 Average Speed 228 | 120 215 240 240 240 Slowest Speed 320 | 120 320 240 240 240 Overloaded Moves . | . . . . . Propulsion Burnouts . | . . . . . Robots Hopped . | . . . . . Cave-ins Triggered . | . . . . . Exploration Rate (%) 49 | 2 90 57 60 36 Regions Visited 4 Branch Regions 3 Pre-discovered Areas 2 | . . 1 . 1 Known Exits Taken . | . . . . . Unknown Exits Taken 4 | 1 1 1 1 . Scrap Searched 1 | . . 1 . . Spaces Dug . | . . . . . Terrain Destroyed 61 | . 15 10 . 36 Melee . | . . . . . Projectile . | . . . . . AOE 61 | . 15 10 . 36 Terrain Rammed . | . . . . . Walls Destroyed . | . . . . . Machines Disabled . | . . . . . Actions | -11 -10 -10 -10 -9 --------- Run | Jun Mat Min Exi Min Total 1368 | . 716 352 213 87 Wait 119 | . 96 15 7 1 Move 1089 | . 488 322 204 75 Hop . | . . . . . Pick Up 31 | . 25 5 . 1 Fast Attach 5 | . 5 . . . Attach 8 | . 6 . . 2 Detach 1 | . . . 1 . Swap 13 | . 8 4 . 1 Drop 21 | . 13 4 1 3 Fire 81 | . 75 2 . 4 Melee . | . . . . . Ram . | . . . . . Kick . | . . . . . Crush . | . . . . . Escape Stasis . | . . . . . Rewire . | . . . . . Trap . | . . . . . Miscellaneous . | . . . . . Route ------- -11/Junkyard -10/Materials (discovered 4 exits: [*Mat x3] / [*Min]) -10/Mines (discovered 2 exits: [*Mat] / [*Exi]) -10/Exiles -9/Mines History --------- Turn | Location | Event 1 | -11/Junkyard | Discovered new exit (range 0) 1 | -11/Junkyard | Entered Materials 319 | -10/Materials | Discovered new exit (range 11) 324 | -10/Materials | Build established: Mutant 884 | -10/Materials | Discovered new exit (range 10) 1060 | -10/Materials | Discovered new exit (range 14) 1264 | -10/Materials | Core integrity fell below 50% 1379 | -10/Materials | Discovered new exit (range 16) 1415 | -10/Materials | Entered Mines 1419 | -10/Mines | Met a Derelict bent on vengeance 1645 | -10/Mines | Learned location of Storage (-9) 1716 | -10/Mines | Discovered new exit (range 14) 1764 | -10/Mines | Joined a pair of Derelicts in attacking an 0b10 outpost 1992 | -10/Mines | Assisted by bots powering up and referring to "LRC-V3" 2184 | -10/Mines | Learned Materials trap positions 2211 | -10/Mines | Deemed a non-threat by the Exiles lab entrance 2211 | -10/Mines | Discovered new exit (range 5) 2220 | -10/Mines | Entered Exiles 2220 | -10/Exiles | Found Exiles lab abandoned 2220 | -10/Exiles | Accompanied by 2 allies 2690 | -10/Exiles | Discovered new exit (range 14) 2718 | -10/Exiles | Entered Mines 2718 | -9/Mines | Accompanied by 2 allies 2887 | -9/Mines | Assembled infested the area 2892 | -9/Mines | Assisted by a Guerilla fighting off Assembled 2912 | -9/Mines | Core integrity fell below 20% 2913 | -9/Mines | Destroyed by as-40197 with Assembled Blade Last Messages --------------- 02887_ ALERT: Infestation in the mines, dispatching Demolisher response squad. 02887_ K-01 Serf collects debris. 02890_ System corrupted: FCS attempts to trigger Grenade Launcher. 02890_ System corrupted: Grenade Launcher misfires. 02890_ T-07 Excavator destroyed. 02891_ K-01 Serf collects debris. 02892_ A derelict emerges from the shadows: "You need to get out of here! I've been tracking a group of Assembled to figure out where they're coming from, and they're closing on this area, come on!" 02900_ as-05838 destroyed. 02900_ Grenade Launcher destroyed. 02900_ Destroyed Grenade Launcher. 02906_ System corrupted: Matter fused (-6). 02909_ as-09113 suffers critical hit (Destroy). 02909_ as-09113 destroyed. 02910_ Lgt. Treads destroyed. 02912_ Dropped Ion Engine. 02913_ Dropped Med. Storage Unit. 02913_ Dropped Hcp. Storage Unit. Map ----- +----------------------------------------------------+ | ##??????????????????????????????????????????? | | #??????????????????????????????????????????? | | #??????????????????????????????????????????? | | ##?????????????????????????????????????????? | | #??####???????????????????????????????????? | | #### ##??????????????????????????????????? | | ## ##?????????????????????????????????? | | ##????######??????????????????????? | | #??## ##?????????????????????? | | #??# ##????????????????????? | | ##### ?????????????????????? | | ## = ## ??????????????????????? | | #### ==# ### """" #?????????????????????? | | ####??# ! == """" #????????????????????? | | ??????# =% """" #????????????????????? | | ??????# =! # #?????????????????????? | | ??????## ## # ###?????????????????????? | | ???????# ###### #??##???????????????????????? | | ??????# #???????????????????????????? | | ?????# #### ## #???????????????????????????? | | ????# ##??#??# #???????????????????????????? | | ??? #??????## ##???????????????###????????? | | ?? #???????# #???????????? ##???????? | | ? ????????# ##??####### #???????? | | ? ?????????# *% ###a#!! ?????? | | ? ?????????# !=a@==! ?????? | | ??? ??????????# aaaaa!!= ?????? | | ??????????????## # #a a!#### ## ?????? | | ???????????????###### % #???? #????????????? | | ????????????????????# #????? #????????????? | | ????????????????????## ##??????? #????????????? | | ?????????????????????#$#?????????#????????????? | | ?????????????????????# #??????????????????????? | | ?????????????????????# #??????????????????????? | | ?????????????????????# ??????????????????????? | | ?????????????????????###??????????????????????? | | ??????????????????????????????????????????????? | | ??????????????????????????????????????????????? | | ??????????????????????????????????????????????? | | ??????????????????????????????????????????????? | | ??????????????????????????????????????????????? | | ??????????????????????????????????????????????? | | ??????????????????????????????????????????????? | | ??????????????????????????????????????????????? | | ??????????????????????????????????????????????? | | ??????????????????????????????????????????????? | | ??????????????????????????????????????????????? | | ??????????????????????????????????????????????? | | ??????????????????????????????????????????????? | | ??????????????????????????????????????????????? | +----------------------------------------------------+ Best States ------------- Heat Dissipation 39 Energy Generation 10 Energy Capacity 250 Matter Stores 300 Matter Capacity 300 Sight Range 16 Terrain Scan Density 10 Evasion (%) 42 Recoil Reduction 2 Item Schematics ----------------- None Robot Schematics ------------------ None Fabricated ------------ Nothing Alien Tech Used ----------------- None Achievements -------------- None Challenges ------------ None Game ------ Seed CompactModifiedMediator Manual? 0 Play Time 00:12:10 Cumulative 513.9 hours Start 2023.03.29 @ 16:07:11 End 2023.03.29 @ 16:17:59 Sessions 1 Manual Loads 0 Difficulty Rogue Special Mode None Game No. 547 Rogue 547 Adventurer 0 Explorer 0 Win Type - Total 1 Types 1/0/0/0/0/0/0/0/0 Lore% 64 Gallery% 83 Achievement% 65 Wizard Run 0 Options --------- ASCII 0 Keyboard 0 Movement Mouse Keybinds 0 Fullscreen 2 Font 24/Smallcaps Map View 76x50 Tactical HUD 1 Map Filters NONE Filters NONE Steam 1 RUN: b7e70200-58a3-469b-8dc4-ae22a11ddc7a